[Event "IV Elllobregat Open Chess Tmnt"]
[Site "Sant Boi de Llobregat, Spain"]
[Date "2023.12.01"]
[Round "2.50"]
[White "Alsina Leal, Daniel"]
[Black "Ohler, Julius"]
[Result "1-0"]
[TimeControl "90min/40moves + 15min/end + 30sec from move 1"]
[WhiteFideId "2252627"]
[BlackFideId "16238982"]
[WhiteElo "2533"]
[BlackElo "2273"]

1. e4 {[%clk 01:30:57]} {[%emt 00:00:02]} c6 {[%clk 01:30:55]} {[%emt
00:00:06]} 2. Nf3 {[%clk 01:31:15]} {[%emt 00:00:12]} d5 {[%clk 01:31:18]}
{[%emt 00:00:07]} 3. Nc3 {[%clk 01:31:35]} {[%emt 00:00:10]} dxe4 {[%clk
01:31:20]} {[%emt 00:00:28]} 4. Nxe4 {[%clk 01:31:57]} {[%emt 00:00:08]} Nf6
{[%clk 01:31:39]} {[%emt 00:00:11]} 5. Qe2 {[%clk 01:31:57]} {[%emt 00:00:29]}
Na6 {[%clk 01:31:25]} {[%emt 00:00:44]} 6. d4 {[%clk 01:31:57]} {[%emt
00:00:30]} Bg4 {[%clk 01:27:24]} {[%emt 00:04:31]} 7. c3 {[%clk 01:27:54]}
{[%emt 00:04:34]} Qd5 {[%clk 01:21:29]} {[%emt 00:06:25]} 8. Ned2 {[%clk
01:26:52]} {[%emt 00:01:32]} Nc7 {[%clk 01:16:21]} {[%emt 00:05:38]} 9. h3
{[%clk 01:25:52]} {[%emt 00:01:30]} Bh5 {[%clk 01:12:04]} {[%emt 00:04:47]} 10.
g4 {[%clk 01:25:51]} {[%emt 00:00:31]} Bg6 {[%clk 01:12:29]} {[%emt 00:00:04]}
11. Bg2 {[%clk 01:25:34]} {[%emt 00:00:46]} Ne6 {[%clk 00:55:49]} {[%emt
00:17:11]} 12. Nh4 {[%clk 01:11:42]} {[%emt 00:14:22]} Qa5 {[%clk 00:45:33]}
{[%emt 00:10:45]} 13. Nc4 {[%clk 01:07:18]} {[%emt 00:04:55]} Qa6 {[%clk
00:44:55]} {[%emt 00:01:09]} 14. Nxg6 {[%clk 01:04:32]} {[%emt 00:03:15]} hxg6
{[%clk 00:45:19]} {[%emt 00:00:05]} 15. Nd6+ {[%clk 00:58:48]} {[%emt
00:06:14]} exd6 {[%clk 00:43:58]} {[%emt 00:01:51]} 16. Qxa6 {[%clk 00:59:06]}
{[%emt 00:00:12]} bxa6 {[%clk 00:44:22]} {[%emt 00:00:05]} 17. Bxc6+ {[%clk
00:59:21]} {[%emt 00:00:15]} Kd8 {[%clk 00:44:47]} {[%emt 00:00:06]} 18. Bxa8
{[%clk 00:59:25]} {[%emt 00:00:26]} 1-0

[Event "IV Elllobregat Open Chess Tmnt"]
[Site "Sant Boi de Llobregat, Spain"]
[Date "2023.12.01"]
[Round "2.51"]
[White "Tyurin, Artem"]
[Black "Arizmendi Martinez, Julen Luis"]
[Result "1/2-1/2"]
[TimeControl "90min/40moves + 15min/end + 30sec from move 1"]
[WhiteFideId "44130112"]
[BlackFideId "2205092"]
[WhiteElo "2302"]
[BlackElo "2525"]

1. c4 {[%clk 01:26:11]} {[%emt 00:04:48]} e6 {[%clk 01:23:51]} {[%emt
00:07:09]} 2. Nc3 {[%clk 01:26:35]} {[%emt 00:00:06]} d5 {[%clk 01:24:05]}
{[%emt 00:00:17]} 3. d4 {[%clk 01:27:01]} {[%emt 00:00:04]} Nf6 {[%clk
01:21:12]} {[%emt 00:03:22]} 4. cxd5 {[%clk 01:27:25]} {[%emt 00:00:06]} exd5
{[%clk 01:21:37]} {[%emt 00:00:06]} 5. Bg5 {[%clk 01:27:52]} {[%emt 00:00:03]}
c6 {[%clk 01:21:46]} {[%emt 00:00:21]} 6. e3 {[%clk 01:28:17]} {[%emt
00:00:05]} Bd6 {[%clk 01:20:51]} {[%emt 00:01:26]} 7. Bd3 {[%clk 01:28:36]}
{[%emt 00:00:11]} O-O {[%clk 01:20:32]} {[%emt 00:00:48]} 8. Nf3 {[%clk
01:28:42]} {[%emt 00:00:24]} Be6 {[%clk 01:17:33]} {[%emt 00:03:29]} 9. Ne5
{[%clk 01:24:09]} {[%emt 00:05:02]} c5 {[%clk 01:16:54]} {[%emt 00:01:10]} 10.
O-O {[%clk 01:23:16]} {[%emt 00:01:23]} Nc6 {[%clk 00:45:26]} {[%emt 00:31:59]}
11. Nxc6 {[%clk 01:22:27]} {[%emt 00:01:19]} bxc6 {[%clk 00:45:54]} {[%emt
00:00:01]} 12. Na4 {[%clk 01:21:46]} {[%emt 00:01:11]} c4 {[%clk 00:35:57]}
{[%emt 00:10:27]} 13. Bc2 {[%clk 01:22:04]} {[%emt 00:00:12]} h6 {[%clk
00:22:06]} {[%emt 00:14:21]} 14. Bh4 {[%clk 01:22:02]} {[%emt 00:00:32]} Be7
{[%clk 00:18:59]} {[%emt 00:03:36]} 15. b3 {[%clk 01:05:20]} {[%emt 00:17:12]}
Nd7 {[%clk 00:18:05]} {[%emt 00:01:25]} 16. Bg3 {[%clk 01:01:20]} {[%emt
00:04:30]} Qa5 {[%clk 00:13:49]} {[%emt 00:04:46]} 17. Rb1 {[%clk 00:49:18]}
{[%emt 00:12:33]} cxb3 {[%clk 00:11:54]} {[%emt 00:02:26]} 18. axb3 {[%clk
00:45:23]} {[%emt 00:04:24]} Bb4 {[%clk 00:07:45]} {[%emt 00:04:38]} 19. Nb2
{[%clk 00:44:31]} {[%emt 00:01:23]} c5 {[%clk 00:05:38]} {[%emt 00:02:37]} 20.
Nd3 {[%clk 00:41:31]} {[%emt 00:03:30]} Rfc8 {[%clk 00:05:02]} {[%emt
00:01:06]} 21. Nf4 {[%clk 00:30:31]} {[%emt 00:11:29]} Qb6 {[%clk 00:05:02]}
{[%emt 00:00:31]} 22. e4 {[%clk 00:28:14]} {[%emt 00:02:47]} Nf6 {[%clk
00:02:30]} {[%emt 00:03:01]} 23. exd5 {[%clk 00:21:51]} {[%emt 00:06:53]} Bg4
{[%clk 00:02:55]} {[%emt 00:00:05]} 24. f3 {[%clk 00:19:53]} {[%emt 00:02:28]}
1/2-1/2

[Event "IV Elllobregat Open Chess Tmnt"]
[Site "Sant Boi de Llobregat, Spain"]
[Date "2023.12.01"]
[Round "2.52"]
[White "Lucas, Arthur"]
[Black "Samadov, Read"]
[Result "1-0"]
[TimeControl "90min/40moves + 15min/end + 30sec from move 1"]
[WhiteFideId "26093073"]
[BlackFideId "13417444"]
[WhiteElo "2316"]
[BlackElo "2506"]

1. e4 {[%clk 01:30:56]} {[%emt 00:00:03]} c5 {[%clk 01:30:54]} {[%emt
00:00:07]} 2. Nf3 {[%clk 01:31:21]} {[%emt 00:00:05]} d6 {[%clk 01:31:17]}
{[%emt 00:00:06]} 3. d4 {[%clk 01:31:44]} {[%emt 00:00:08]} cxd4 {[%clk
01:31:41]} {[%emt 00:00:06]} 4. Nxd4 {[%clk 01:32:09]} {[%emt 00:00:05]} Nf6
{[%clk 01:32:05]} {[%emt 00:00:06]} 5. Nc3 {[%clk 01:32:34]} {[%emt 00:00:05]}
a6 {[%clk 01:32:30]} {[%emt 00:00:06]} 6. Rg1 {[%clk 01:32:31]} {[%emt
00:00:32]} b5 {[%clk 01:31:06]} {[%emt 00:01:54]} 7. a4 {[%clk 01:32:52]}
{[%emt 00:00:10]} b4 {[%clk 01:30:24]} {[%emt 00:01:12]} 8. Nd5 {[%clk
01:33:17]} {[%emt 00:00:05]} e6 {[%clk 01:30:04]} {[%emt 00:00:49]} 9. Nxf6+
{[%clk 01:31:46]} {[%emt 00:02:01]} Qxf6 {[%clk 01:29:33]} {[%emt 00:01:02]} 10.
Be3 {[%clk 01:31:38]} {[%emt 00:00:38]} Bb7 {[%clk 01:28:04]} {[%emt 00:01:58]}
11. Qd2 {[%clk 01:31:49]} {[%emt 00:00:19]} Bxe4 {[%clk 01:26:04]} {[%emt
00:02:30]} 12. Qxb4 {[%clk 01:29:55]} {[%emt 00:02:25]} Nd7 {[%clk 01:07:29]}
{[%emt 00:19:05]} 13. O-O-O {[%clk 01:09:54]} {[%emt 00:20:31]} Rb8 {[%clk
00:46:46]} {[%emt 00:21:13]} 14. Qa5 {[%clk 01:06:29]} {[%emt 00:03:55]} Be7
{[%clk 00:42:53]} {[%emt 00:04:22]} 15. g4 {[%clk 00:53:13]} {[%emt 00:13:47]}
O-O {[%clk 00:40:09]} {[%emt 00:03:15]} 16. g5 {[%clk 00:52:27]} {[%emt
00:01:15]} Qg6 {[%clk 00:37:08]} {[%emt 00:03:30]} 17. f3 {[%clk 00:47:59]}
{[%emt 00:04:59]} Ba8 {[%clk 00:34:47]} {[%emt 00:02:51]} 18. Bd3 {[%clk
00:20:21]} {[%emt 00:28:08]} Qh5 {[%clk 00:33:31]} {[%emt 00:01:45]} 19. Bxa6
{[%clk 00:20:08]} {[%emt 00:00:43]} Nc5 {[%clk 00:24:38]} {[%emt 00:09:23]} 20.
Bb5 {[%clk 00:20:20]} {[%emt 00:00:19]} Rfc8 {[%clk 00:23:56]} {[%emt
00:01:12]} 21. Kb1 {[%clk 00:20:25]} {[%emt 00:00:25]} Bf8 {[%clk 00:22:00]}
{[%emt 00:02:26]} 22. Qd2 {[%clk 00:08:27]} {[%emt 00:12:28]} e5 {[%clk
00:17:14]} {[%emt 00:05:16]} 23. Nf5 {[%clk 00:08:32]} {[%emt 00:00:25]} Bxf3
{[%clk 00:15:28]} {[%emt 00:02:16]} 24. Rdf1 {[%clk 00:07:22]} {[%emt
00:01:41]} Be4 {[%clk 00:11:34]} {[%emt 00:04:24]} 25. Qf2 {[%clk 00:03:45]}
{[%emt 00:04:07]} Rxb5 {[%clk 00:03:15]} {[%emt 00:08:50]} 26. Nh6+ {[%clk
00:01:34]} {[%emt 00:02:40]} gxh6 {[%clk 00:02:56]} {[%emt 00:00:49]} 27. gxh6+
{[%clk 00:02:00]} {[%emt 00:00:04]} Bg7 {[%clk 00:03:16]} {[%emt 00:00:10]} 28.
Rxg7+ {[%clk 00:01:14]} {[%emt 00:01:16]} Kh8 {[%clk 00:03:35]} {[%emt
00:00:11]} 29. axb5 {[%clk 00:01:00]} {[%emt 00:00:45]} f5 {[%clk 00:02:34]}
{[%emt 00:01:31]} 30. Bxc5 {[%clk 00:00:32]} {[%emt 00:00:58]} Rxc5 31. Rfg1
{[%clk 00:00:33]} {[%emt 00:00:29]} Rc8 {[%clk 00:03:04]} {[%emt 00:00:29]} 32.
Rxh7+ {[%clk 00:00:37]} {[%emt 00:00:26]} Kxh7 {[%clk 00:03:29]} {[%emt
00:00:05]} 33. Qa7+ {[%clk 00:01:04]} {[%emt 00:00:04]} 1-0

[Event "IV Elllobregat Open Chess Tmnt"]
[Site "Sant Boi de Llobregat, Spain"]
[Date "2023.12.01"]
[Round "2.53"]
[White "Szpar, Milosz"]
[Black "Fiorito, Fabian"]
[Result "1-0"]
[TimeControl "90min/40moves + 15min/end + 30sec from move 1"]
[WhiteFideId "1184989"]
[BlackFideId "100200"]
[WhiteElo "2485"]
[BlackElo "2318"]

1. e4 {[%clk 01:30:56]} {[%emt 00:00:02]} c5 {[%clk 01:30:12]} {[%emt
00:00:48]} 2. Nf3 {[%clk 01:31:20]} {[%emt 00:00:06]} Nc6 {[%clk 01:30:06]}
{[%emt 00:00:37]} 3. d4 {[%clk 01:31:26]} {[%emt 00:00:24]} cxd4 {[%clk
01:30:32]} {[%emt 00:00:05]} 4. Nxd4 {[%clk 01:31:51]} {[%emt 00:00:05]} Qb6
{[%clk 01:27:11]} {[%emt 00:03:50]} 5. Nb3 {[%clk 01:31:55]} {[%emt 00:00:25]}
Nf6 {[%clk 01:27:37]} {[%emt 00:00:05]} 6. Nc3 {[%clk 01:32:13]} {[%emt
00:00:12]} e6 {[%clk 01:27:52]} {[%emt 00:00:15]} 7. Qe2 {[%clk 01:29:08]}
{[%emt 00:03:34]} d6 {[%clk 01:24:24]} {[%emt 00:03:59]} 8. g4 {[%clk
01:28:25]} {[%emt 00:01:13]} a6 {[%clk 01:23:03]} {[%emt 00:01:51]} 9. g5
{[%clk 01:15:57]} {[%emt 00:12:58]} Nd7 {[%clk 01:23:28]} {[%emt 00:00:06]} 10.
h4 {[%clk 01:16:23]} {[%emt 00:00:04]} Qc7 {[%clk 01:22:44]} {[%emt 00:01:14]}
11. h5 {[%clk 01:08:01]} {[%emt 00:08:51]} b5 {[%clk 01:22:09]} {[%emt
00:01:06]} 12. a3 {[%clk 01:08:21]} {[%emt 00:00:10]} Nce5 {[%clk 01:15:19]}
{[%emt 00:07:20]} 13. f4 {[%clk 01:06:03]} {[%emt 00:02:48]} Nc4 {[%clk
01:15:26]} {[%emt 00:00:23]} 14. a4 {[%clk 01:05:53]} {[%emt 00:00:40]} b4
{[%clk 01:11:46]} {[%emt 00:04:11]} 15. Qxc4 {[%clk 01:01:40]} {[%emt
00:04:42]} Qxc4 {[%clk 01:12:11]} {[%emt 00:00:05]} 16. Bxc4 {[%clk 01:02:04]}
{[%emt 00:00:06]} bxc3 {[%clk 01:12:39]} {[%emt 00:00:03]} 17. bxc3 {[%clk
01:02:27]} {[%emt 00:00:07]} Bb7 {[%clk 01:10:11]} {[%emt 00:02:59]} 18. Bd3
{[%clk 01:02:07]} {[%emt 00:00:50]} f5 {[%clk 01:08:39]} {[%emt 00:02:02]} 19.
gxf6 {[%clk 00:59:48]} {[%emt 00:02:48]} Nxf6 {[%clk 01:08:02]} {[%emt
00:01:07]} 20. Nd2 {[%clk 00:59:47]} {[%emt 00:00:31]} e5 {[%clk 01:05:41]}
{[%emt 00:02:52]} 21. Rb1 {[%clk 00:53:55]} {[%emt 00:06:21]} Bc6 {[%clk
01:04:46]} {[%emt 00:01:25]} 22. fxe5 {[%clk 00:51:00]} {[%emt 00:03:25]} dxe5
{[%clk 01:03:59]} {[%emt 00:01:17]} 23. Rb6 {[%clk 00:49:54]} {[%emt 00:01:36]}
Bxa4 {[%clk 00:49:18]} {[%emt 00:15:12]} 24. Re6+ {[%clk 00:40:48]} {[%emt
00:09:34]} Kd7 {[%clk 00:44:58]} {[%emt 00:04:51]} 25. Rxe5 {[%clk 00:40:47]}
{[%emt 00:00:32]} Bc6 {[%clk 00:38:23]} {[%emt 00:07:05]} 26. Rg1 {[%clk
00:32:21]} {[%emt 00:08:55]} Rb8 {[%clk 00:32:29]} {[%emt 00:06:25]} 27. Bxa6
{[%clk 00:24:50]} {[%emt 00:08:01]} Kc7 {[%clk 00:30:36]} {[%emt 00:02:24]} 28.
Bd3 {[%clk 00:23:02]} {[%emt 00:02:17]} Re8 {[%clk 00:28:52]} {[%emt 00:02:14]}
29. Rxe8 {[%clk 00:18:07]} {[%emt 00:05:25]} Bxe8 {[%clk 00:28:59]} {[%emt
00:00:23]} 30. h6 {[%clk 00:18:07]} {[%emt 00:00:30]} gxh6 {[%clk 00:27:45]}
{[%emt 00:01:45]} 31. Nc4 {[%clk 00:14:24]} {[%emt 00:04:13]} Rg8 {[%clk
00:11:44]} {[%emt 00:16:32]} 32. Rf1 {[%clk 00:12:23]} {[%emt 00:02:31]} Ng4
{[%clk 00:09:39]} {[%emt 00:02:35]} 33. Bf4+ {[%clk 00:12:33]} {[%emt
00:00:19]} Kd8 {[%clk 00:08:52]} {[%emt 00:01:16]} 34. Ke2 {[%clk 00:06:38]}
{[%emt 00:06:26]} h5 {[%clk 00:05:19]} {[%emt 00:04:03]} 35. Rb1 {[%clk
00:05:50]} {[%emt 00:01:18]} Nf6 {[%clk 00:03:42]} {[%emt 00:02:07]} 36. Rb8+
{[%clk 00:04:09]} {[%emt 00:02:10]} Ke7 {[%clk 00:03:52]} {[%emt 00:00:21]} 37.
Rb7+ {[%clk 00:03:48]} {[%emt 00:00:50]} Nd7 {[%clk 00:03:37]} {[%emt
00:00:46]} 38. Ne3 {[%clk 00:03:46]} {[%emt 00:00:31]} Rg6 {[%clk 00:01:40]}
{[%emt 00:02:27]} 39. Nd5+ {[%clk 00:03:48]} {[%emt 00:00:29]} Kd8 {[%clk
00:02:09]} 40. Ra7 {[%clk 00:18:37]} {[%emt 00:00:38]} Kc8 {[%clk 00:16:22]}
{[%emt 00:01:17]} 41. Ra8+ {[%clk 00:18:47]} {[%emt 00:00:21]} 1-0

[Event "IV Elllobregat Open Chess Tmnt"]
[Site "Sant Boi de Llobregat, Spain"]
[Date "2023.12.01"]
[Round "2.54"]
[White "Martinez Ramirez, Lennis"]
[Black "Nurgaliyev, Sauat"]
[Result "1/2-1/2"]
[TimeControl "90min/40moves + 15min/end + 30sec from move 1"]
[WhiteFideId "3509079"]
[BlackFideId "13726285"]
[WhiteElo "2461"]
[BlackElo "2235"]

1. c4 {[%clk 01:30:30]} {[%emt 00:06:13]} c5 {[%clk 01:27:02]} {[%emt
00:03:54]} 2. Nf3 {[%clk 01:30:21]} {[%emt 00:00:47]} Nc6 {[%clk 01:27:23]}
{[%emt 00:00:08]} 3. Nc3 {[%clk 01:30:27]} {[%emt 00:00:24]} Nf6 {[%clk
01:27:46]} {[%emt 00:00:07]} 4. d4 {[%clk 01:30:29]} {[%emt 00:00:28]} cxd4
{[%clk 01:27:29]} {[%emt 00:00:47]} 5. Nxd4 {[%clk 01:30:57]} {[%emt 00:00:02]}
e6 {[%clk 01:27:51]} {[%emt 00:00:08]} 6. e4 {[%clk 01:27:51]} {[%emt
00:03:36]} Bb4 {[%clk 01:26:40]} {[%emt 00:01:41]} 7. Nxc6 {[%clk 01:27:22]}
{[%emt 00:00:59]} dxc6 {[%clk 01:25:34]} {[%emt 00:01:36]} 8. Qxd8+ {[%clk
01:24:13]} {[%emt 00:03:39]} Kxd8 {[%clk 01:26:02]} {[%emt 00:00:02]} 9. f3
{[%clk 01:24:41]} {[%emt 00:00:02]} e5 {[%clk 01:24:45]} {[%emt 00:01:47]} 10.
Be3 {[%clk 01:25:06]} {[%emt 00:00:04]} b6 {[%clk 01:13:21]} {[%emt 00:11:55]}
11. O-O-O+ {[%clk 01:24:29]} {[%emt 00:01:07]} Ke7 {[%clk 01:09:57]} {[%emt
00:03:54]} 12. Na4 {[%clk 01:22:12]} {[%emt 00:02:47]} Nd7 {[%clk 01:07:21]}
{[%emt 00:03:07]} 13. a3 {[%clk 01:20:15]} {[%emt 00:02:27]} Bc5 {[%clk
01:04:18]} {[%emt 00:03:33]} 14. Nxc5 {[%clk 01:18:21]} {[%emt 00:02:23]} Nxc5
{[%clk 01:04:02]} {[%emt 00:00:47]} 15. b4 {[%clk 01:18:45]} {[%emt 00:00:06]}
Ne6 {[%clk 01:02:50]} {[%emt 00:01:42]} 16. c5 {[%clk 01:19:04]} {[%emt
00:00:11]} b5 {[%clk 00:58:39]} {[%emt 00:04:42]} 17. a4 {[%clk 01:15:39]}
{[%emt 00:03:54]} a5 {[%clk 00:51:14]} {[%emt 00:07:55]} 18. axb5 {[%clk
01:15:16]} {[%emt 00:00:52]} axb4 {[%clk 00:51:32]} {[%emt 00:00:12]} 19. Kb2
{[%clk 01:15:22]} {[%emt 00:00:24]} Ra3 {[%clk 00:48:43]} {[%emt 00:03:20]} 20.
Bf2 {[%clk 01:02:47]} {[%emt 00:13:04]} cxb5 {[%clk 00:36:39]} {[%emt
00:12:35]} 21. Bxb5 {[%clk 01:01:03]} {[%emt 00:02:14]} Ba6 {[%clk 00:31:40]}
{[%emt 00:05:29]} 22. Rd7+ {[%clk 00:56:18]} {[%emt 00:05:15]} Kf6 {[%clk
00:32:02]} {[%emt 00:00:07]} 23. Bxa6 {[%clk 00:37:01]} {[%emt 00:19:48]} Rxa6
{[%clk 00:32:30]} {[%emt 00:00:02]} 24. Ra1 {[%clk 00:37:08]} {[%emt 00:00:23]}
Rxa1 {[%clk 00:27:48]} {[%emt 00:05:13]} 25. Kxa1 {[%clk 00:37:36]} {[%emt
00:00:02]} Rc8 {[%clk 00:21:13]} {[%emt 00:07:04]} 26. Rd5 {[%clk 00:37:34]}
{[%emt 00:00:31]} Nf4 {[%clk 00:17:11]} {[%emt 00:04:33]} 27. Rd6+ {[%clk
00:31:39]} {[%emt 00:06:25]} Ke7 {[%clk 00:16:39]} {[%emt 00:01:02]} 28. g3
{[%clk 00:26:43]} {[%emt 00:05:27]} Ne6 {[%clk 00:14:23]} {[%emt 00:02:46]} 29.
Rd5 {[%clk 00:27:07]} {[%emt 00:00:05]} f6 {[%clk 00:13:07]} {[%emt 00:01:47]}
30. Be1 {[%clk 00:27:28]} {[%emt 00:00:09]} Nd4 {[%clk 00:10:09]} {[%emt
00:03:28]} 31. Kb2 {[%clk 00:27:10]} {[%emt 00:00:48]} Rb8 {[%clk 00:09:41]}
{[%emt 00:00:58]} 32. f4 {[%clk 00:24:37]} {[%emt 00:03:03]} Nc6 {[%clk
00:09:35]} {[%emt 00:00:36]} 33. Rd6 {[%clk 00:23:46]} {[%emt 00:01:21]} Rc8
{[%clk 00:07:22]} {[%emt 00:02:43]} 34. f5 {[%clk 00:24:09]} {[%emt 00:00:07]}
Kf8 {[%clk 00:04:50]} {[%emt 00:03:02]} 35. g4 {[%clk 00:24:32]} {[%emt
00:00:07]} Na5 {[%clk 00:03:56]} {[%emt 00:01:25]} 36. Rd7 {[%clk 00:19:15]}
{[%emt 00:05:46]} Rb8 {[%clk 00:03:57]} {[%emt 00:00:29]} 37. h4 {[%clk
00:12:21]} {[%emt 00:07:23]} Nc4+ {[%clk 00:03:30]} {[%emt 00:00:58]} 38. Kc1
{[%clk 00:01:11]} {[%emt 00:11:40]} b3 {[%clk 00:03:54]} {[%emt 00:00:06]} 39.
Bc3 {[%clk 00:01:40]} b2+ {[%clk 00:00:45]} {[%emt 00:03:40]} 40. Bxb2 {[%clk
00:02:09]} {[%emt 00:00:01]} Rxb2 {[%clk 00:15:52]} {[%emt 00:00:23]} 41. c6
{[%clk 00:17:39]} Re2 {[%clk 00:13:53]} {[%emt 00:02:30]} 42. Rd8+ {[%clk
00:13:15]} {[%emt 00:04:53]} Ke7 {[%clk 00:13:37]} {[%emt 00:00:45]} 43. c7
{[%clk 00:11:30]} {[%emt 00:02:16]} Nb6 {[%clk 00:13:14]} {[%emt 00:00:53]} 44.
c8=Q {[%clk 00:11:37]} {[%emt 00:00:22]} Nxc8 {[%clk 00:13:38]} {[%emt
00:00:07]} 45. Rxc8 {[%clk 00:12:03]} {[%emt 00:00:04]} Rxe4 {[%clk 00:14:02]}
{[%emt 00:00:06]} 46. Rc7+ {[%clk 00:12:32]} {[%emt 00:00:01]} Ke8 {[%clk
00:13:19]} {[%emt 00:01:14]} 47. Rxg7 {[%clk 00:12:53]} {[%emt 00:00:08]} Kf8
{[%clk 00:13:43]} {[%emt 00:00:06]} 48. Rxh7 {[%clk 00:11:29]} {[%emt
00:01:54]} Rxg4 {[%clk 00:14:03]} {[%emt 00:00:10]} 49. h5 {[%clk 00:10:49]}
{[%emt 00:01:10]} Rg5 {[%clk 00:12:49]} {[%emt 00:01:43]} 50. h6 {[%clk
00:09:12]} {[%emt 00:02:07]} Kg8 {[%clk 00:10:43]} {[%emt 00:02:36]} 51. Re7
{[%clk 00:07:30]} {[%emt 00:02:12]} Rh5 {[%clk 00:07:19]} {[%emt 00:03:54]} 52.
Rg7+ {[%clk 00:05:16]} {[%emt 00:02:43]} Kh8 {[%clk 00:07:39]} {[%emt
00:00:10]} 53. Rg6 {[%clk 00:04:53]} {[%emt 00:00:54]} Rxf5 {[%clk 00:07:56]}
{[%emt 00:00:13]} 54. Rg7 {[%clk 00:05:16]} {[%emt 00:00:07]} Rh5 {[%clk
00:07:49]} {[%emt 00:00:37]} 55. Rg6 {[%clk 00:05:45]} {[%emt 00:00:01]} f5
{[%clk 00:06:19]} {[%emt 00:02:00]} 56. Rf6 {[%clk 00:05:49]} {[%emt 00:00:26]}
f4 {[%clk 00:05:51]} {[%emt 00:00:58]} 57. Kd2 {[%clk 00:06:13]} {[%emt
00:00:05]} Rh3 {[%clk 00:04:16]} {[%emt 00:02:05]} 58. Re6 {[%clk 00:04:12]}
{[%emt 00:02:31]} Re3 {[%clk 00:04:42]} {[%emt 00:00:04]} 59. Re7 {[%clk
00:01:11]} {[%emt 00:03:31]} e4 {[%clk 00:05:04]} {[%emt 00:00:08]} 60. h7
{[%clk 00:00:59]} {[%emt 00:00:42]} Rd3+ {[%clk 00:04:55]} {[%emt 00:00:40]} 61.
Ke2 {[%clk 00:01:28]} {[%emt 00:00:01]} f3+ {[%clk 00:05:15]} {[%emt 00:00:10]}
62. Kf2 {[%clk 00:01:22]} {[%emt 00:00:36]} Rd2+ {[%clk 00:04:17]} {[%emt
00:01:29]} 63. Kf1 {[%clk 00:01:04]} {[%emt 00:00:47]} Re2 {[%clk 00:03:01]}
{[%emt 00:01:45]} 64. Rf7 {[%clk 00:01:31]} {[%emt 00:00:03]} Rb2 {[%clk
00:02:07]} {[%emt 00:01:24]} 65. Re7 {[%clk 00:01:54]} {[%emt 00:00:07]} Rb1+
{[%clk 00:02:09]} {[%emt 00:00:28]} 66. Kf2 {[%clk 00:02:12]} {[%emt 00:00:12]}
Rb2+ {[%clk 00:02:32]} {[%emt 00:00:07]} 67. Kf1 {[%clk 00:02:40]} Rb1+ {[%clk
00:02:54]} {[%emt 00:00:08]} 1/2-1/2

[Event "IV Elllobregat Open Chess Tmnt"]
[Site "Sant Boi de Llobregat, Spain"]
[Date "2023.12.01"]
[Round "2.55"]
[White "Escobar Forero, Alder"]
[Black "Rakshitta, Ravi"]
[Result "1-0"]
[TimeControl "90min/40moves + 15min/end + 30sec from move 1"]
[WhiteFideId "4400801"]
[BlackFideId "25073230"]
[WhiteElo "2450"]
[BlackElo "2245"]

1. d4 {[%emt 00:58:05]} Nf6 {[%emt 00:04:27]} 2. g3 {[%emt 00:00:06]} d5 {[%emt
00:00:47]} 3. Nf3 {[%emt 00:00:07]} e6 {[%emt 00:00:55]} 4. Bg2 {[%emt
00:00:56]} b5 {[%emt 00:01:44]} 5. O-O {[%emt 00:00:09]} Be7 {[%emt 00:00:17]}
6. Nbd2 {[%emt 00:00:45]} O-O {[%emt 00:01:31]} 7. a4 {[%emt 00:08:12]} b4
{[%emt 00:00:18]} 8. Nb3 {[%emt 00:00:05]} Nbd7 {[%emt 00:04:11]} 9. Na5 {[%emt
00:05:12]} Bd6 {[%emt 00:03:39]} 10. Nc6 {[%emt 00:11:27]} Qe8 {[%emt
00:00:07]} 11. a5 {[%emt 00:00:18]} Ba6 {[%emt 00:04:15]} 12. Bf4 {[%emt
00:04:48]} Bxf4 {[%emt 00:15:56]} 13. gxf4 {[%emt 00:00:09]} Nh5 {[%emt
00:03:17]} 14. Nxb4 {[%emt 00:00:55]} Bb5 {[%emt 00:00:05]} 15. Qd2 {[%emt
00:00:22]} c5 {[%emt 00:03:17]} 16. dxc5 {[%emt 00:00:57]} Nxc5 {[%emt
00:00:10]} 17. Nd4 {[%emt 00:02:14]} Qb8 {[%emt 00:10:38]} 18. f5 {[%emt
00:30:25]} Nf4 {[%emt 00:04:26]} 19. Bf3 {[%emt 00:03:42]} Ne4 {[%emt
00:06:16]} 20. Bxe4 {[%emt 00:01:54]} dxe4 {[%emt 00:00:11]} 21. Nxb5 {[%emt
00:00:24]} Nh3+ {[%emt 00:01:33]} 22. Kg2 {[%emt 00:00:44]} Qxb5 {[%emt
00:18:00]} 23. Kxh3 {[%emt 00:00:22]} Rfd8 {[%emt 00:00:30]} 24. Qe1 {[%emt
00:00:56]} Rab8 {[%emt 00:04:03]} 25. c3 {[%emt 00:00:42]} exf5 {[%emt
00:01:51]} 26. Kg2 {[%emt 00:00:49]} Rd6 {[%emt 00:03:04]} 27. Rd1 {[%clk
00:23:11]} {[%emt 00:04:03]} Rh6 {[%clk 00:05:54]} {[%emt 00:02:47]} 28. Rd5
{[%clk 00:23:25]} {[%emt 00:00:16]} Qb7 {[%clk 00:06:12]} {[%emt 00:00:13]} 29.
f4 {[%clk 00:20:55]} {[%emt 00:03:00]} exf3+ {[%clk 00:05:14]} {[%emt
00:01:28]} 30. exf3 {[%clk 00:21:13]} {[%emt 00:00:11]} Re6 {[%clk 00:04:46]}
{[%emt 00:00:58]} 31. Qd2 {[%clk 00:20:03]} {[%emt 00:01:41]} Qe7 {[%clk
00:02:36]} {[%emt 00:02:41]} 32. Kh1 {[%clk 00:14:54]} {[%emt 00:05:39]} Re8
{[%clk 00:01:59]} {[%emt 00:01:07]} 33. Rd7 {[%clk 00:08:11]} {[%emt 00:07:13]}
Qh4 {[%clk 00:02:08]} {[%emt 00:00:21]} 34. Rd4 {[%clk 00:08:27]} {[%emt
00:00:14]} Qh3 {[%clk 00:01:34]} {[%emt 00:01:04]} 35. Qg2 {[%clk 00:08:39]}
{[%emt 00:00:18]} Qh5 {[%clk 00:01:51]} {[%emt 00:00:14]} 36. Nd5 {[%clk
00:08:48]} {[%emt 00:00:21]} Rg6 {[%clk 00:00:37]} {[%emt 00:01:44]} 37. Ne7+
{[%clk 00:08:59]} {[%emt 00:00:19]} 1-0

[ePGN "0.1;DGT LiveChess/2.2.6"]